fUSD/lending_fUSD_20241027
["ID","MTS","AMOUNT","RATE_DAILY","PERIOD"]
[340884893,1730014238874,-1438.1884,0.00043841,2]
[340884894,1730014238883,-129.8962093,0.000439,2]
[340884895,1730014238896,-1025.0240237,0.000439,2]
[340884896,1730014238910,-503.8,0.00043918,30]
[340884898,1730014238919,-503.8,0.00043918,30]
[340884899,1730014238928,-503.8,0.00043918,30]
[340884900,1730014238938,-114.00648496,0.00043918,30]
[340884901,1730014238950,-389.79351504,0.00043918,30]
[340884902,1730014238960,-209.24648496,0.00043918,30]
[340884903,1730014238972,-294.55351504,0.00043918,30]
[340884904,1730014238984,-724.97,0.00043918,30]
[340884905,1730014238994,-500.0,0.00043928,2]
[340884906,1730014239003,-8249.03949863,0.00043928,2]
[340884907,1730014239014,-757.258615,0.00043928,2]
[340884908,1730014239025,-566.95085923,0.00043928,2]
[340884909,1730014239039,-34905.97909274,0.00043928,2]
[340884910,1730014239051,-617.49975,0.00043928,2]
[340884911,1730014239063,-1014.26609025,0.00043928,2]
[340884912,1730014240514,-450.0,0.00023,2]
[340884913,1730014240524,-118.72554474,0.00025,2]
[340884914,1730014240545,-381.27445526,0.00025,2]
[340884915,1730014240556,-1317.70969462,0.00043928,2]
[340884916,1730014240569,-2161.93590095,0.00043928,2]
[340884917,1730014240660,-550.44,0.00043928,2]
[340884918,1730014240695,-620.31499997,0.00043928,2]
[340885193,1730014243411,-550.0,0.00027,2]
[340885195,1730014243421,-42634.39219861,0.00043928,2]
[340885197,1730014243431,-503.8,0.00043995,30]
[340885199,1730014243440,-724.97,0.00043996,30]
[340885201,1730014243450,-503.8,0.00043997,30]
[340885203,1730014243459,-312.88477354,0.00044,120]
[340885204,1730014243468,-633.3069973,0.00044004,15]
[340885206,1730014243477,-633.3069973,0.00044004,15]
[340885208,1730014243487,-633.3069973,0.00044005,15]
[340885210,1730014243496,-168.27409619,0.00044005,14]
[340885212,1730014243506,-633.3069973,0.00044005,15]
[340885214,1730014243515,-633.3069973,0.00044005,15]
[340885216,1730014243524,-633.3069973,0.00044006,15]
[340885218,1730014243533,-633.3069973,0.00044006,15]
[340885220,1730014243542,-200.0,0.00044006,2]
[340885222,1730014243551,-200.0,0.00044006,2]
[340885223,1730014243560,-200.0,0.00044006,2]
[340885225,1730014243569,-200.0,0.00044006,2]
[340885227,1730014243578,-196.0,0.00044006,2]
[340885229,1730014243587,-10150.5449,0.00044006,2]
[340885231,1730014243596,-633.3069973,0.00044006,15]
[340885232,1730014243605,-1000.89007812,0.00044007,2]
[340885233,1730014243614,-1000.89007812,0.00044007,2]
[340885235,1730014243624,-633.3069973,0.00044007,15]
[340885237,1730014243632,-633.3069973,0.00044007,15]
[340885239,1730014243642,-682.65960988,0.00044007,28]
[340885241,1730014243651,-362.4026638,0.00044007,2]
[340885243,1730014243660,-1907.98864354,0.00044039,2]
[340885245,1730014243670,-503.8,0.00044096,30]
[340885247,1730014243679,-154.62,0.00044097,2]
[340885249,1730014243688,-154.62,0.00044097,2]
[340885250,1730014243697,-154.62,0.00044097,2]
[340885252,1730014243707,-154.62,0.00044097,2]
[340885254,1730014243716,-154.62,0.00044097,2]
[340885256,1730014243726,-154.62,0.00044097,2]
[340885258,1730014243736,-154.62,0.00044097,2]
[340885260,1730014243746,-154.62,0.00044097,2]
[340885262,1730014243755,-154.62,0.00044097,2]
[340885264,1730014243765,-154.62,0.00044097,2]
[340885266,1730014243775,-154.62,0.00044097,2]
[340885268,1730014243784,-154.62,0.00044097,2]
[340885270,1730014243794,-154.62,0.00044097,2]
[340885272,1730014243803,-154.62,0.00044097,2]
[340885274,1730014243812,-154.62,0.00044097,2]
[340885276,1730014243821,-154.62,0.00044097,2]
[340885277,1730014243830,-154.62,0.00044097,2]
[340885279,1730014243840,-154.62,0.00044097,2]
[340885281,1730014243849,-154.62,0.00044097,2]
[340885283,1730014243859,-154.62,0.00044097,2]
[340885285,1730014243868,-228.52404071,0.00044097,2]
[340885287,1730014243878,-1054.008455,0.000441,74]
[340885289,1730014243887,-391.62279323,0.00044106,31]
[340885291,1730014243896,-167.83833995,0.00044106,31]
[340885293,1730014243906,-2969.49,0.00044106,5]
[340885295,1730014243915,-2969.49,0.00044106,5]
[340885297,1730014243925,-2969.49,0.00044106,5]
[340885299,1730014243934,-2969.49,0.00044106,5]
[340885301,1730014243943,-2969.49,0.00044106,5]
[340885303,1730014243953,-2969.49,0.00044106,5]
[340885305,1730014243962,-2969.49,0.00044106,5]
[340885306,1730014243971,-2969.49,0.00044106,5]
[340885308,1730014243980,-2969.49,0.00044106,5]
[340885310,1730014243989,-2969.49,0.00044106,5]
[340885312,1730014243997,-2969.49,0.00044106,5]
[340885314,1730014244007,-2969.49,0.00044106,5]
[340885316,1730014244015,-2969.49,0.00044106,5]
[340885318,1730014244024,-2969.49,0.00044106,5]
[340885320,1730014244033,-2969.49,0.00044106,5]
[340885321,1730014244042,-2969.49,0.00044106,5]
[340885323,1730014244051,-2969.49,0.00044106,5]
[340885325,1730014244061,-2969.49,0.00044106,5]
[340885327,1730014244071,-2969.49,0.00044106,5]
[340885330,1730014244084,-2969.49,0.00044106,5]
[340885332,1730014244095,-2969.49,0.00044106,5]
[340885334,1730014244104,-2969.49,0.00044106,5]
[340885335,1730014244114,-2969.49,0.00044106,5]
[340885336,1730014244125,-2969.56712008,0.00044106,5]
[340885337,1730014244138,-153.0,0.00044106,7]
[340885338,1730014244148,-2797060.47434911,0.00044107,20]
[340885339,1730014244161,-262011.07109347,0.00044107,20]
[340885340,1730014244176,-759.09514417,0.00044107,20]
[340885341,1730014244187,-20978.70887202,0.00044107,20]
[340885342,1730014244288,-124294.72309255,0.00044107,20]
[340885343,1730014244300,-946.00647109,0.00044107,20]
[340885363,1730014248194,938.0,0.00044107,30]
[340885364,1730014251044,-150.0,0.00015342,2]
[340885365,1730014477749,-1.36,0.00015342,2]
[340885366,1730014477770,-148.64,0.00015482,2]
[340885367,1730014705783,-151.36,0.00015623,2]
[340885368,1730014743775,3000.0,0.00044087,79]
[340885369,1730014767702,-150.0,0.00017422,2]
[340885370,1730014795270,3000.0,0.00044089,77]
[340885371,1730014865696,938.0,0.00044089,30]
[340885372,1730014876254,938.0,0.00044089,30]
[340885373,1730015336205,-155.14,0.00015342,2]
[340885384,1730015431493,-177.29,0.00019178,2]
[340885385,1730015431503,-156.83,0.00020198,2]
[340885386,1730015431513,-151.36,0.0003272,2]
[340885387,1730015431523,-176.83,0.00032782,2]
[340885388,1730015431532,-177.29,0.00035616,120]
[340885389,1730015431542,-426.886786,0.00039351,2]
[340885390,1730015431552,-1482.26561978,0.00039649,2]
[340885423,1730015437508,-820.90438022,0.00039649,2]
[340885424,1730015437519,-1200.68000336,0.00039649,30]
[340885425,1730015437808,-1092.17999664,0.00039649,30]
[340885426,1730015437818,-302.36531784,0.00039849,2]
[340885427,1730015437832,-367.47468216,0.00039849,2]
[340885428,1730015437845,-1463.25,0.00039859,2]
[340885429,1730015437854,-153.7,0.00040047,2]
[340885430,1730015437864,-250.0,0.00040101,120]
[340885432,1730015437873,-297.55,0.00040131,2]
[340885434,1730015437884,-250.0,0.00040139,2]
[340885436,1730015437894,-150.75,0.00040147,120]
[340885438,1730015437904,-987.0,0.00040298,2]
[340885439,1730015437914,-259.58944201,0.00040401,2]
[340885463,1730015439460,-372.68055799,0.00040401,2]
[340885465,1730015439470,-200.0,0.00040416,2]
[340885467,1730015439480,-510.05574393,0.00040506,2]
[340885468,1730015439492,-200.0,0.0004058,2]
[340885469,1730015439503,-34.9733927,0.00040667,120]
[340885470,1730015439575,-2097.90770082,0.00040667,120]
[340885471,1730015439586,-448.41966153,0.00040667,120]
[340885472,1730015439597,-169.69924495,0.00040667,120]
[340885473,1730015439606,-203.10075505,0.000407,2]
[340885474,1730015439617,-10.11262168,0.000407,2]
[340885475,1730015439626,-213.21337673,0.000407,2]
[340885476,1730015439635,-150.0,0.00040814,7]
[340885477,1730015439644,-152.93,0.00040883,2]
[340885478,1730015439653,-152.93,0.00040897,2]
[340885479,1730015439662,-152.93,0.00040911,2]
[340885480,1730015439671,-152.93,0.00040924,2]
[340885481,1730015439683,-152.93,0.00040938,2]
[340885482,1730015439695,-152.93,0.00040951,2]
[340885483,1730015439706,-152.93,0.00040965,2]
[340885484,1730015439717,-152.93,0.00040979,2]
[340885485,1730015439726,-399.82770227,0.00040984,2]
[340885486,1730015439735,-152.93,0.00040992,2]
[340885487,1730015439745,-152.93,0.00041006,2]
[340885488,1730015439756,-1206.34,0.00041009,2]
[340885489,1730015439765,-152.93,0.00041019,2]
[340885490,1730015439775,-152.93,0.00041033,2]
[340885491,1730015439784,-152.93,0.00041047,2]
[340885492,1730015439794,-152.93,0.0004106,2]
[340885493,1730015439804,-152.93,0.00041074,2]
[340885494,1730015439814,-152.93,0.00041088,2]
[340885495,1730015439825,-250.0,0.00041092,2]
[340885496,1730015439836,-154.51,0.00041096,2]
[340885498,1730015439846,-942.21,0.0004113,2]
[340885499,1730015439854,-2714.53,0.00041167,2]
[340885500,1730015439864,-399.82770227,0.00041203,2]
[340885501,1730015439873,-1000.0,0.00041491,120]
[340885502,1730015439882,-399.82770227,0.00041512,2]
[340885503,1730015439892,-7668.54266676,0.00041596,2]
[340885504,1730015439910,-16231.45733324,0.00041596,2]
[340885505,1730015439922,-399.82770227,0.00041667,2]
[340885506,1730015439932,-1463.25,0.00041851,2]
[340885507,1730015439942,-1967.1736294,0.00041853,15]
[340885508,1730015439951,-11510.84578238,0.00041853,2]
[340885509,1730015439960,-1000.0,0.00041941,2]
[340885510,1730015439969,-109727.72,0.00041942,2]
[340885511,1730015439978,-1000.0,0.00041954,2]
[340885512,1730015439988,-1967.17362937,0.0004209,15]
[340885513,1730015439997,-399.82770227,0.00042098,2]
[340885514,1730015440006,-669.84,0.00042113,2]
[340885515,1730015440016,-399.82770227,0.00042193,2]
[340885516,1730015440026,-209.52,0.00042268,120]
[340885517,1730015440035,-167.99,0.00042291,2]
[340885518,1730015440044,-1967.17362937,0.00042328,15]
[340885519,1730015440053,-1967.17362937,0.00042565,15]
[340885520,1730015440062,-769.30118269,0.0004259,45]
[340885521,1730015440071,-153.87,0.00042618,2]
[340885522,1730015440080,-153.87,0.00042631,2]
[340885523,1730015440089,-153.87,0.00042643,2]
[340885524,1730015440098,-153.87,0.00042656,2]
[340885525,1730015440107,-153.87,0.00042668,2]
[340885526,1730015440117,-399.82770227,0.00042675,2]
[340885527,1730015440126,-153.87,0.00042681,2]
[340885528,1730015440135,-153.87,0.00042693,2]
[340885529,1730015440144,-153.87,0.00042706,2]
[340885530,1730015440154,-724.623,0.00042706,65]
[340885531,1730015440163,-153.87,0.00042718,2]
[340885532,1730015440174,-153.87,0.00042731,2]
[340885533,1730015440183,-760.7869,0.0004274,2]
[340885534,1730015440195,-153.87,0.00042744,2]
[340885535,1730015440205,-153.87,0.00042756,2]
[340885536,1730015440215,-153.87,0.00042769,2]
[340885537,1730015440226,-153.87,0.00042781,2]
[340885538,1730015440237,-153.87,0.00042794,2]
[340885539,1730015440246,-154.07564628,0.000428,10]
[340885540,1730015440256,-500.0,0.000428,10]
[340885541,1730015440266,-1967.17362937,0.00042802,15]
[340885542,1730015440276,-153.87,0.00042806,2]
[340885543,1730015440287,-153.87,0.00042819,2]
[340885544,1730015440298,-153.87,0.00042831,2]
[340885545,1730015440308,-9778.6259,0.0004284,7]
[340885546,1730015440318,-11510.84578236,0.0004288,2]
[340885547,1730015440327,-399.82770227,0.0004301,2]
[340885548,1730015440335,-1967.17362937,0.0004304,15]
[340885549,1730015440345,-399.82770227,0.00043194,2]
[340885550,1730015440354,-297.8211986,0.0004326,10]
[340885551,1730015440363,-1967.17362937,0.00043277,15]
[340885552,1730015440374,-399.82770227,0.00043316,2]
[340885553,1730015440385,-300.0,0.00043338,2]
[340885554,1730015440393,-1967.17362937,0.00043514,15]
[340885555,1730015440402,-1247.0,0.00043645,2]
[340885556,1730015440412,-813.0,0.00043645,2]
[340885557,1730015440420,-450.0,0.00043645,2]
[340885558,1730015440430,-561.0,0.00043645,2]
[340885559,1730015440439,-556.0,0.00043645,2]
[340885560,1730015440448,-937.0,0.00043645,2]
[340885561,1730015440457,-3362.0,0.00043645,2]
[340885562,1730015440466,-1912.0,0.00043645,2]
[340885563,1730015440475,-810.0,0.00043645,2]
[340885564,1730015440484,-150.0,0.00043645,2]
[340885565,1730015440494,-5898.0,0.00043645,2]
[340885566,1730015440503,-150.0,0.00043645,2]
[340885567,1730015440512,-1152.0,0.00043645,2]
[340885568,1730015440520,-150.0,0.00043645,2]
[340885569,1730015440529,-13553.0,0.00043645,2]
[340885570,1730015440539,-1086.0,0.00043645,2]
[340885571,1730015440547,-12617.89374126,0.0004367,2]
[340885572,1730015440556,-502.3229604,0.00043673,10]
[340885573,1730015440565,-399.82770227,0.0004373,2]
[340885574,1730015440574,-1967.17362937,0.00043752,15]
[340885575,1730015440583,-500.0,0.00043835,5]
[340885576,1730015440593,-500.0,0.00043835,5]
[340885577,1730015440601,-500.0,0.00043835,5]
[340885578,1730015440611,-500.0,0.00043835,5]
[340885579,1730015440620,-500.0,0.00043835,2]
[340885580,1730015440629,-1463.25,0.00043844,2]
[340885581,1730015440639,-159.69511531,0.00043889,28]
[340885582,1730015440647,-455.0,0.000439,30]
[340885583,1730015440656,-215.74086088,0.000439,16]
[340885584,1730015440666,-11510.84578236,0.00043906,2]
[340885585,1730015440676,-5057.0916,0.00043906,2]
[340885586,1730015440685,-1699.9575,0.00043906,2]
[340885587,1730015440694,-1345.7319,0.00043906,2]
[340885588,1730015440703,-399.82770237,0.00043965,2]
[340885589,1730015440713,-1000.0,0.00043987,2]
[340885590,1730015440722,-168.27409619,0.00043987,14]
[340885591,1730015440731,-500.0,0.00043988,5]
[340885592,1730015440740,-1967.17362937,0.00043989,15]
[340885593,1730015440749,-182.11797446,0.00043989,18]
[340885594,1730015440758,-15784.1456728,0.0004399,10]
[340885595,1730015440767,-9428.95439438,0.00043991,2]
[340885596,1730015440776,-185.33874653,0.00043991,9]
[340885597,1730015440785,-159.69511531,0.00043991,28]
[340885598,1730015440794,-336.7014815,0.00043991,2]
[340885599,1730015440803,-55244.5098547,0.00043996,10]
[340885600,1730015440812,-7892.07283638,0.00043997,10]
[340885601,1730015440821,-40000.0,0.00044,90]
[340885602,1730015440830,-150.0,0.00044,49]
[340885603,1730015440839,-500.0,0.00044005,5]
[340885604,1730015440848,-500.0,0.00044005,5]
[340885605,1730015440857,-500.0,0.00044005,5]
[340885606,1730015440866,-500.0,0.00044005,2]
[340885607,1730015440875,-63651.5319,0.00044006,2]
[340885608,1730015440884,-54191.1485,0.00044006,2]
[340885609,1730015440983,-158.67635362,0.00044007,19]
[340885610,1730015440996,-370.47636696,0.00044025,30]
[340885611,1730015441005,-1000.0,0.00044063,2]
[340885612,1730015441014,-1000.0,0.00044063,2]
[340885613,1730015441023,-1000.0,0.00044063,2]
[340885614,1730015441034,-1000.0,0.00044063,2]
[340885615,1730015441043,-1000.0,0.00044063,2]
[340885616,1730015441053,-1000.0,0.00044063,2]
[340885617,1730015441063,-1000.0,0.00044063,2]
[340885618,1730015441074,-901.3516,0.00044063,2]
[340885619,1730015441083,-163.96575925,0.00044081,2]
[340885620,1730015441092,-154.67,0.00044081,2]
[340885621,1730015441102,-154.67,0.00044081,2]
[340885622,1730015441112,-1001.1472,0.00044086,2]
[340885623,1730015441122,-500.0,0.00044088,5]
[340885624,1730015441131,-500.0,0.00044088,5]
[340885625,1730015441141,-500.0,0.00044088,5]
[340885626,1730015441150,-500.0,0.00044088,5]
[340885627,1730015441159,-500.0,0.00044088,5]
[340885628,1730015441168,-500.0,0.00044088,5]
[340885629,1730015441178,-500.0,0.00044088,5]
[340885630,1730015441187,-500.0,0.00044088,5]
[340885631,1730015441196,-500.0,0.00044088,5]
[340885632,1730015441206,-500.0,0.00044088,5]
[340885633,1730015441217,-500.0,0.00044088,5]
[340885634,1730015441226,-500.0,0.00044088,5]
[340885635,1730015441238,-500.0,0.00044088,5]
[340885636,1730015441247,-508.65,0.00044088,5]
[340885637,1730015441257,-500.0,0.00044088,5]
[340885638,1730015441268,-500.0,0.00044088,5]
[340885639,1730015441279,-500.0,0.00044088,5]
[340885640,1730015441289,-637.45,0.00044088,5]
[340885641,1730015441298,-500.0,0.00044088,5]
[340885642,1730015441308,-222.48,0.00044088,5]
[340885643,1730015441317,-159.0,0.00044088,7]
[340885644,1730015441329,-31568.2913455,0.0004409,10]
[340885645,1730015441340,-500.0,0.0004409,2]
[340885646,1730015441350,-500.0,0.0004409,2]
[340885647,1730015441362,-500.0,0.0004409,2]
[340885648,1730015441372,-500.0,0.0004409,2]
[340885649,1730015441385,-500.0,0.0004409,2]
[340885650,1730015441394,-500.0,0.0004409,2]
[340885651,1730015441403,-500.0,0.0004409,2]
[340885652,1730015441412,-500.0,0.0004409,2]
[340885653,1730015441422,-500.0,0.0004409,2]
[340885654,1730015441431,-500.0,0.0004409,2]
[340885655,1730015441440,-500.0,0.0004409,2]
[340885656,1730015441451,-500.0,0.0004409,2]
[340885657,1730015441459,-500.0,0.0004409,2]
[340885658,1730015441469,-481.6048,0.0004409,2]
[340885659,1730015441478,-14971.3374452,0.00044091,20]
[340885660,1730015441511,-13253.22423378,0.00044091,20]
[340885661,1730015441611,-1687.62990054,0.00044091,20]
[340885662,1730015441622,-788.30346052,0.00044091,20]
[340885667,1730015442568,-1437.47936802,0.00039549,2]
[340885668,1730015442579,-229.876,0.00043645,2]
[340885669,1730015442589,-263.946,0.00043645,2]
[340885670,1730015442600,-1494.50022768,0.00044091,20]
[340885671,1730015442613,-1553.73433547,0.00044091,20]
[340885672,1730015442625,-124294.72309255,0.00044091,20]
[340885673,1730015442637,-606.78686568,0.00044091,20]
[340885674,1730015442650,-12342.70653821,0.00044091,20]
[340885675,1730015442662,-559.38740254,0.00044091,20]
[340885676,1730015442780,-564.74894883,0.00044091,20]
[340885678,1730015445655,-57139.76053543,0.00044091,20]
[340885679,1730015445666,-544.89615804,0.00044091,20]
[340885680,1730015445682,-17286.91973196,0.00044091,20]
[340885681,1730015445805,-7425.12069506,0.00044091,20]
[340885682,1730015445920,-43753.01748646,0.00044091,20]
[340885715,1730015782493,175.1,0.00015342,2]
[340885716,1730016009716,4414.0,0.00044092,30]
[340885718,1730016043758,250.0,0.00015,2]
[340885719,1730016044833,300.0,0.00017,2]
[340885720,1730016046504,-350.0,0.00019,2]
[340885721,1730016362439,376.0,0.000187,2]
[340885725,1730016631512,-156.83,0.00019288,2]
[340885726,1730016631521,-300.0,0.00019725,2]
[340885727,1730016631531,-400.0,0.00021,2]
[340885728,1730016631541,-420.0,0.00021484,2]
[340885729,1730016631551,-450.0,0.00023,2]
[340885730,1730016631560,-587.0,0.00023401,2]
[340885731,1730016631569,-500.0,0.00025,2]
[340885732,1730016631579,-26.05164217,0.00025488,2]
[340885733,1730016631669,-796.94835783,0.00025488,2]
[340885734,1730016631679,-550.0,0.00027,2]
[340885735,1730016631689,-300.0,0.00027761,2]
[340885736,1730016631701,-600.0,0.00029,2]
[340885737,1730016631711,-650.0,0.00031,2]
[340885738,1730016631720,-783.88422273,0.00031,2]
[340885739,1730016631731,-9.25577727,0.00031,2]
[340885740,1730016631741,-700.0,0.00033,2]
[340885741,1730016631750,-695.07,0.00038451,2]
[340885742,1730016631759,-250.0,0.00039308,2]
[340885743,1730016631769,-585.3,0.00039309,2]
[340885744,1730016631778,-471.1,0.00039326,2]
[340885745,1730016631790,-250.0,0.00040157,120]
[340885746,1730016631800,-200.0,0.00040158,2]
[340885747,1730016631811,-606.28166728,0.00040183,120]
[340885748,1730016631822,-328.1431498,0.00040183,120]
[340885749,1730016631838,-65.57518292,0.00040183,120]
[340885750,1730016631847,-1000.0,0.00040247,2]
[340885751,1730016631858,-150.75,0.00040248,120]
[340885752,1730016631867,-2511.68330508,0.00040248,2]
[340885753,1730016637611,-783.5840292,0.00040248,2]
[340885754,1730016637623,-1301.15361802,0.00040248,2]
[340885755,1730016637634,-749.86877271,0.00040248,2]
[340885756,1730016637646,-6329.97878758,0.00040248,2]
[340885757,1730016637657,-681.11499573,0.00040248,2]
[340885758,1730016637668,-310.24010705,0.00040248,2]
[340885759,1730016637679,-537.13002854,0.00040248,2]
[340885760,1730016637694,-1826.19952413,0.00040248,2]
[340885761,1730016637706,-653.41012928,0.00040248,2]
[340885762,1730016637717,-275.96458678,0.00040248,2]
[340885763,1730016638001,-7939.6721159,0.00040248,2]
[340885764,1730016638010,-209.52,0.00040315,120]
[340885765,1730016638019,-250.0,0.00040354,2]
[340885766,1730016638029,-1000.0,0.0004037,2]
[340885767,1730016638038,-150.0,0.00040432,7]
[340885768,1730016638048,-695.07,0.00040714,2]
[340885769,1730016638056,-522.79243652,0.00040866,3]
[340885770,1730016638066,-169.547,0.00041058,60]
[340885771,1730016638075,-807.733,0.00041058,60]
[340885772,1730016638085,-292.65,0.00041063,2]
[340885774,1730016638094,-155.23,0.00041096,2]
[340885775,1730016638103,-157.0,0.00041096,2]
[340885777,1730016638113,-585.3,0.00041274,2]
[340885779,1730016638122,-1651.644,0.00041486,2]
[340885780,1730016638132,-556.0,0.00041486,2]
[340885781,1730016638141,-3362.0,0.00041486,2]
[340885782,1730016638151,-1912.0,0.00041486,2]
[340885783,1730016638160,-810.0,0.00041486,2]
[340885784,1730016638169,-1152.0,0.00041486,2]
[340885785,1730016638178,-150.0,0.00041486,2]
[340885786,1730016638188,-13553.0,0.00041486,2]
[340885787,1730016638198,-5898.0,0.00041486,2]
[340885788,1730016638207,-1086.0,0.00041486,2]
[340885789,1730016638216,-300.0,0.00041499,2]
[340885790,1730016638225,-4533.18268905,0.00041842,2]
[340885791,1730016638238,-523.90891095,0.00041842,2]
[340885792,1730016638247,-153.87,0.00041845,2]
[340885793,1730016638256,-153.87,0.00041857,2]
[340885794,1730016638265,-153.87,0.00041869,2]
[340885795,1730016638274,-399.82770228,0.00041878,2]
[340885796,1730016638283,-153.87,0.00041882,2]
[340885797,1730016638293,-6648.19388677,0.00041892,2]
[340885798,1730016638308,-585.097,0.00041892,2]
[340885799,1730016638319,-440.60630149,0.00041892,2]
[340885800,1730016638329,-153.87,0.00041894,2]
[340885801,1730016638338,-1061.85824377,0.000419,2]
[340885802,1730016638347,-153.87,0.00041906,2]
[340885803,1730016638356,-153.87,0.00041919,2]
[340885804,1730016638366,-153.87,0.00041931,2]
[340885805,1730016638375,-399.82770228,0.0004194,2]
[340885806,1730016638385,-153.87,0.00041943,2]
[340885807,1730016638395,-153.87,0.00041955,2]
[340885808,1730016638404,-153.87,0.00041968,2]
[340885809,1730016638414,-161.6689208,0.00041973,10]
[340885810,1730016638424,-297.8211986,0.00041973,10]
[340885811,1730016638433,-241.39975364,0.00041973,10]
[340885815,1730016639560,-260.92320676,0.00041973,10]
[340885816,1730016639570,-153.87,0.0004198,2]
[340885817,1730016639579,-54191.1485,0.0004199,2]
[340885818,1730016639589,-153.87,0.00041992,2]
[340885819,1730016639598,-153.87,0.00042005,2]
[340885820,1730016639607,-153.87,0.00042017,2]
[340885821,1730016639616,-153.87,0.00042029,2]
[340885822,1730016639625,-153.87,0.00042042,2]
[340885823,1730016639634,-153.87,0.00042054,2]
[340885824,1730016639644,-168.0,0.00042066,2]
[340885825,1730016639653,-7673.89718823,0.00042154,2]
[340885826,1730016639662,-1000.0,0.00042191,2]
[340885827,1730016639672,-200.0,0.000422,2]
[340885828,1730016639681,-399.82770228,0.00042297,2]
[340885829,1730016639691,-209.52,0.00042305,120]
[340885830,1730016639701,-1770.45626646,0.00042384,15]
[340885831,1730016639710,-603.5172,0.0004239,30]
[340885832,1730016639720,-1911.0164,0.0004239,2]
[340885833,1730016639729,-1699.9575,0.0004239,2]
[340885834,1730016639738,-1345.7319,0.0004239,2]
[340885835,1730016639748,-14011.3954,0.0004239,2]
[340885836,1730016639757,-1000.0,0.0004239,2]
[340885837,1730016639766,-7673.89718823,0.00042416,2]
[340885838,1730016639776,-370.75174721,0.00042416,2]
[340885839,1730016639785,-55773.8968988,0.0004248,9]
[340885840,1730016639794,-245000.0,0.0004249,2]
[340885841,1730016639804,-1770.45626643,0.00042563,15]
[340885842,1730016639813,-769.30118269,0.0004259,45]
[340885843,1730016639822,-399.82770228,0.0004259,2]
[340885844,1730016639831,-331.67211543,0.000427,2]
[340885845,1730016639841,-1770.45626643,0.00042741,15]
[340885846,1730016639851,-300.0,0.00042869,2]
[340885847,1730016639861,-1770.45626643,0.0004292,15]
[340885848,1730016639871,-370.7517472,0.00042941,2]
[340885849,1730016639880,-399.82770228,0.00042965,2]
[340885850,1730016639889,-695.07,0.00042978,2]
[340885851,1730016639899,-9295.64948313,0.00043082,10]
[340885852,1730016639908,-215.74086088,0.00043092,15]
[340885853,1730016639918,-1770.45626643,0.00043099,15]
[340885854,1730016639927,-292.65,0.00043117,2]
[340885855,1730016639937,-180.0,0.00043214,120]
[340885856,1730016639947,-585.3,0.00043239,2]
[340885857,1730016639956,-399.82770228,0.00043273,2]
[340885858,1730016639965,-1770.45626643,0.00043277,15]
[340885859,1730016639975,-200.0,0.000433,30]
[340885860,1730016639984,-399.82770228,0.00043422,2]
[340885861,1730016639994,-1770.45626643,0.00043456,15]
[340885862,1730016640003,-370.7517472,0.00043467,2]
[340885863,1730016640013,-399.8277023,0.00043568,2]
[340885864,1730016640022,-150.0,0.00043607,2]
[340885865,1730016640032,-1770.45626643,0.00043635,15]
[340885866,1730016640042,-9295.64948313,0.00043635,10]
[340885867,1730016640051,-202.506,0.00043645,2]
[340885868,1730016640060,-202.954,0.00043645,2]
[340885869,1730016640069,-450.0,0.00043645,2]
[340885870,1730016640079,-561.0,0.00043645,2]
[340885872,1730016640088,-814.0,0.00043645,2]
[340885874,1730016640097,-1247.0,0.00043645,2]